Workbook

Sheet Data
A1: National Housing Bank
A2: Subsidy Calculator for Pradhan Mantri Awas Yojana – Credit Linked Subsidy Scheme (EWS/LIG)
A3: First Disbursement Date | B3: 2017-01-01 | C3: Date should be on or after 01-jan-2017
A4: Current Disbursement Date (for which subsidy claimed) | B4: 2017-01-10 | C4: Date should be on or after first disbursement date
A5: Loan Tenure (in months) | B5: 240 | C5: Numeric Integer only
A6: Current Disbursement Installment (in Rs.) | B6: 600000 | C6: Numeric Integer only
A7: Amount Disbursed before this installment (in Rs.) | B7: 0 | C7: Numeric Integer only
A8: Applied Interest Rate for subsidy calculation (in % p.a) | B8: 6.5 | C8: NO input data
A9: Subsidy Amount | B9: 267279.6068
A11: Assumptions:
A12: a. Interest for calculation of subsidy is arrived at by applying interest @ 6.5% p.a. on the disbursed amount and on monthly rest basis
A13: b. Subsidy is calculated for a maximum tenure of 240 months (20 years) from first disbursement.
A14: c. NPV is calculated at the discount rate of 9% and on monthly rest basis.
A15: d. Interest Subsidy is calculated for eligible disbursement amount upto first Rs 6 lakh of loan amount.
A16: e. Paisa is rounded off to the nearest rupee in the total

Sheet Computation
A1: Parameters | C1: Loan Amount | D1: =IF((Data!B7+Data!B6)>600000,600000-Data!B7,Data!B6) -> 600000 | E1: Loan Tenure | F1: =IF(Data!B5>240,240,Data!B5) -> 240 | G1: Cur Inst Tenure | H1: =IF(Data!B4="",0, F1-((YEAR(Data!B4)-YEAR(Data!B3))*12+MONTH(Data!B4)-MONTH(Data!B3))) -> 240 | I1: Int Rate | J1: =IF(Data!B8>6.5,6.5,Data!B8) -> 6.5 | K1: r | L1: =J1/1200 -> 0.005416666667 | M1: (1+r)^n-1 | N1: =((1+L1)^H1)-1 -> 2.656446702
B2: BALANCE | C2: EMI | D2: INTEREST | E2: principal repayment | F2: CL BALANCE | G2: NPV(By Formula) | J2: EMI | K2: =IF($N$1=0,0,($D$1*$L$1)*((1+$L$1)^$H$1)/$N$1) -> 4473.438813
A3: 1 | B3: =D1 -> 600000 | C3: =K2 -> 4473.438813 | D3: =B3*$J$1/(1200) -> 3250 | E3: =C3-D3 -> 1223.438813 | F3: =B3-E3 -> 598776.5612 | G3: =D3/POWER(1+9/1200,A3) -> 3225.806452
A4: =A3+1 -> 2 | B4: =IF(F3>0,F3,0) -> 598776.5612 | C4: =IF(B4>0,C3,0) -> 4473.438813 | D4: =B4*$J$1/1200 -> 3243.37304 | E4: =C4-D4 -> 1230.065773 | F4: =B4-E4 -> 597546.4954 | G4: =D4/POWER(1+9/1200,A4) -> 3195.264341
A5: =A4+1 -> 3 | B5: =IF(F4>0,F4,0) -> 597546.4954 | C5: =IF(B5>0,C4,0) -> 4473.438813 | D5: =B5*$J$1/1200 -> 3236.710183 | E5: 1236.72863 | F5: 596309.7668 | G5: 3164.963091
A6: 4 | B6: 596309.7668 | C6: 4473.438813 | D6: 3230.011237 | E6: 1243.427576 | F6: 595066.3392 | G6: 3134.900881
A7: 5 | B7: 595066.3392 | C7: 4473.438813 | D7: 3223.276004 | E7: 1250.162809 | F7: 593816.1764 | G7: 3105.075904
A8: 6 | B8: 593816.1764 | C8: 4473.438813 | D8: 3216.504289 | E8: 1256.934524 | F8: 592559.2419 | G8: 3075.486365
A9: 7 | B9: 592559.2419 | C9: 4473.438813 | D9: 3209.695893 | E9: 1263.74292 | F9: 591295.499 | G9: 3046.130485
A10: 8 | B10: 591295.499 | C10: 4473.438813 | D10: 3202.850619 | E10: 1270.588194 | F10: 590024.9108 | G10: 3017.006495
A11: 9 | B11: 590024.9108 | C11: 4473.438813 | D11: 3195.968267 | E11: 1277.470546 | F11: 588747.4402 | G11: 2988.112644
A12: 10 | B12: 588747.4402 | C12: 4473.438813 | D12: 3189.048634 | E12: 1284.390179 | F12: 587463.05 | G12: 2959.447188 | H12: Total NPV as per Manual Formula | I12: =SUM(G3:G242) -> 267279.6068
A13: 11 | B13: 587463.05 | C13: 4473.438813 | D13: 3182.091521 | E13: 1291.347292 | F13: 586171.7027 | G13: 2931.008402 | H13: NPV by Excel Formula | I13: =NPV(9/1200,D3:D242) -> 267279.6068
A14: 12 | B14: 586171.7027 | C14: 4473.438813 | D14: 3175.096723 | E14: 1298.34209 | F14: 584873.3607 | G14: 2902.79457
A15: 13 | B15: 584873.3607 | C15: 4473.438813 | D15: 3168.064037 | E15: 1305.374776 | F15: 583567.9859 | G15: 2874.80399
A16: 14 | B16: 583567.9859 | C16: 4473.438813 | D16: 3160.993257 | E16: 1312.445556 | F16: 582255.5403 | G16: 2847.034973
A17: 15 | B17: 582255.5403 | C17: 4473.438813 | D17: 3153.884177 | E17: 1319.554636 | F17: 580935.9857 | G17: 2819.485842
A18: 16 | B18: 580935.9857 | C18: 4473.438813 | D18: 3146.736589 | E18: 1326.702224 | F18: 579609.2835 | G18: 2792.154933
A19: 17 | B19: 579609.2835 | C19: 4473.438813 | D19: 3139.550285 | E19: 1333.888528 | F19: 578275.3949 | G19: 2765.040594
A20: 18 | B20: 578275.3949 | C20: 4473.438813 | D20: 3132.325056 | E20: 1341.113757 | F20: 576934.2812 | G20: 2738.141186
A21: 19 | B21: 576934.2812 | C21: 4473.438813 | D21: 3125.06069 | E21: 1348.378123 | F21: 575585.9031 | G21: 2711.455083
A22: 20 | B22: 575585.9031 | C22: 4473.438813 | D22: 3117.756975 | E22: 1355.681838 | F22: 574230.2212 | G22: 2684.980669
A23: 21 | B23: 574230.2212 | C23: 4473.438813 | D23: 3110.413698 | E23: 1363.025115 | F23: 572867.1961 | G23: 2658.716341
A24: 22 | B24: 572867.1961 | C24: 4473.438813 | D24: 3103.030646 | E24: 1370.408168 | F24: 571496.7879 | G24: 2632.660509
A25: 23 | B25: 571496.7879 | C25: 4473.438813 | D25: 3095.607601 | E25: 1377.831212 | F25: 570118.9567 | G25: 2606.811593
A26: 24 | B26: 570118.9567 | C26: 4473.438813 | D26: 3088.144349 | E26: 1385.294464 | F26: 568733.6623 | G26: 2581.168027
A27: 25 | B27: 568733.6623 | C27: 4473.438813 | D27: 3080.640671 | E27: 1392.798143 | F27: 567340.8641 | G27: 2555.728255
A28: 26 | B28: 567340.8641 | C28: 4473.438813 | D28: 3073.096347 | E28: 1400.342466 | F28: 565940.5216 | G28: 2530.490733
A29: 27 | B29: 565940.5216 | C29: 4473.438813 | D29: 3065.511159 | E29: 1407.927654 | F29: 564532.594 | G29: 2505.45393
A30: 28 | B30: 564532.594 | C30: 4473.438813 | D30: 3057.884884 | E30: 1415.553929 | F30: 563117.0401 | G30: 2480.616324
A31: 29 | B31: 563117.0401 | C31: 4473.438813 | D31: 3050.2173 | E31: 1423.221513 | F31: 561693.8186 | G31: 2455.976407
A32: 30 | B32: 561693.8186 | C32: 4473.438813 | D32: 3042.508184 | E32: 1430.930629 | F32: 560262.8879 | G32: 2431.532679
A33: 31 | B33: 560262.8879 | C33: 4473.438813 | D33: 3034.75731 | E33: 1438.681504 | F33: 558824.2064 | G33: 2407.283654
A34: 32 | B34: 558824.2064 | C34: 4473.438813 | D34: 3026.964451 | E34: 1446.474362 | F34: 557377.7321 | G34: 2383.227857
A35: 33 | B35: 557377.7321 | C35: 4473.438813 | D35: 3019.129382 | E35: 1454.309431 | F35: 555923.4226 | G35: 2359.363823
A36: 34 | B36: 555923.4226 | C36: 4473.438813 | D36: 3011.251873 | E36: 1462.186941 | F36: 554461.2357 | G36: 2335.690097
A37: 35 | B37: 554461.2357 | C37: 4473.438813 | D37: 3003.331693 | E37: 1470.10712 | F37: 552991.1286 | G37: 2312.205238
A38: 36 | B38: 552991.1286 | C38: 4473.438813 | D38: 2995.368613 | E38: 1478.0702 | F38: 551513.0584 | G38: 2288.907812
A39: 37 | B39: 551513.0584 | C39: 4473.438813 | D39: 2987.362399 | E39: 1486.076414 | F39: 550026.982 | G39: 2265.7964
A40: 38 | B40: 550026.982 | C40: 4473.438813 | D40: 2979.312819 | E40: 1494.125994 | F40: 548532.856 | G40: 2242.869589
A41: 39 | B41: 548532.856 | C41: 4473.438813 | D41: 2971.219636 | E41: 1502.219177 | F41: 547030.6368 | G41: 2220.12598
A42: 40 | B42: 547030.6368 | C42: 4473.438813 | D42: 2963.082616 | E42: 1510.356197 | F42: 545520.2806 | G42: 2197.564182
A43: 41 | B43: 545520.2806 | C43: 4473.438813 | D43: 2954.90152 | E43: 1518.537293 | F43: 544001.7433 | G43: 2175.182818
A44: 42 | B44: 544001.7433 | C44: 4473.438813 | D44: 2946.676109 | E44: 1526.762704 | F44: 542474.9806 | G44: 2152.980517
A45: 43 | B45: 542474.9806 | C45: 4473.438813 | D45: 2938.406145 | E45: 1535.032668 | F45: 540939.9479 | G45: 2130.955922
A46: 44 | B46: 540939.9479 | C46: 4473.438813 | D46: 2930.091385 | E46: 1543.347429 | F46: 539396.6005 | G46: 2109.107683
A47: 45 | B47: 539396.6005 | C47: 4473.438813 | D47: 2921.731586 | E47: 1551.707227 | F47: 537844.8933 | G47: 2087.434462
A48: 46 | B48: 537844.8933 | C48: 4473.438813 | D48: 2913.326505 | E48: 1560.112308 | F48: 536284.781 | G48: 2065.93493
A49: 47 | B49: 536284.781 | C49: 4473.438813 | D49: 2904.875897 | E49: 1568.562916 | F49: 534716.218 | G49: 2044.60777
A50: 48 | B50: 534716.218 | C50: 4473.438813 | D50: 2896.379514 | E50: 1577.059299 | F50: 533139.1587 | G50: 2023.451672
A51: 49 | B51: 533139.1587 | C51: 4473.438813 | D51: 2887.83711 | E51: 1585.601703 | F51: 531553.557 | G51: 2002.465337
A52: 50 | B52: 531553.557 | C52: 4473.438813 | D52: 2879.248434 | E52: 1594.190379 | F52: 529959.3667 | G52: 1981.647477
A53: 51 | B53: 529959.3667 | C53: 4473.438813 | D53: 2870.613236 | E53: 1602.825577 | F53: 528356.5411 | G53: 1960.996812
A54: 52 | B54: 528356.5411 | C54: 4473.438813 | D54: 2861.931264 | E54: 1611.507549 | F54: 526745.0335 | G54: 1940.512071
A55: 53 | B55: 526745.0335 | C55: 4473.438813 | D55: 2853.202265 | E55: 1620.236548 | F55: 525124.797 | G55: 1920.191996
A56: 54 | B56: 525124.797 | C56: 4473.438813 | D56: 2844.425984 | E56: 1629.012829 | F56: 523495.7842 | G56: 1900.035334
A57: 55 | B57: 523495.7842 | C57: 4473.438813 | D57: 2835.602164 | E57: 1637.836649 | F57: 521857.9475 | G57: 1880.040844
A58: 56 | B58: 521857.9475 | C58: 4473.438813 | D58: 2826.730549 | E58: 1646.708264 | F58: 520211.2392 | G58: 1860.207294
A59: 57 | B59: 520211.2392 | C59: 4473.438813 | D59: 2817.810879 | E59: 1655.627934 | F59: 518555.6113 | G59: 1840.53346
A60: 58 | B60: 518555.6113 | C60: 4473.438813 | D60: 2808.842895 | E60: 1664.595919 | F60: 516891.0154 | G60: 1821.01813
A61: 59 | B61: 516891.0154 | C61: 4473.438813 | D61: 2799.826333 | E61: 1673.61248 | F61: 515217.4029 | G61: 1801.660097
A62: 60 | B62: 515217.4029 | C62: 4473.438813 | D62: 2790.760932 | E62: 1682.677881 | F62: 513534.725 | G62: 1782.458166
A63: 61 | B63: 513534.725 | C63: 4473.438813 | D63: 2781.646427 | E63: 1691.792386 | F63: 511842.9326 | G63: 1763.411151
A64: 62 | B64: 511842.9326 | C64: 4473.438813 | D64: 2772.482552 | E64: 1700.956261 | F64: 510141.9764 | G64: 1744.517873
A65: 63 | B65: 510141.9764 | C65: 4473.438813 | D65: 2763.269039 | E65: 1710.169774 | F65: 508431.8066 | G65: 1725.777163
A66: 64 | B66: 508431.8066 | C66: 4473.438813 | D66: 2754.005619 | E66: 1719.433194 | F66: 506712.3734 | G66: 1707.187861
A67: 65 | B67: 506712.3734 | C67: 4473.438813 | D67: 2744.692023 | E67: 1728.74679 | F67: 504983.6266 | G67: 1688.748815
A68: 66 | B68: 504983.6266 | C68: 4473.438813 | D68: 2735.327978 | E68: =C68-D68 -> 1738.110836 | F68: =B68-E68 -> 503245.5158 | G68: =D68/POWER(1+9/1200,A68) -> 1670.458881
A69: =A68+1 -> 67 | B69: =IF(F68>0,F68,0) -> 503245.5158 | C69: =IF(B69>0,C68,0) -> 4473.438813 | D69: =B69*$J$1/1200 -> 2725.913211 | E69: 1747.525603 | F69: 501497.9902 | G69: 1652.316927
A70: 68 | B70: 501497.9902 | C70: 4473.438813 | D70: 2716.447447 | E70: 1756.991366 | F70: 499740.9988 | G70: 1634.321824
A71: 69 | B71: 499740.9988 | C71: 4473.438813 | D71: 2706.93041 | E71: 1766.508403 | F71: 497974.4904 | G71: 1616.472457
A72: 70 | B72: 497974.4904 | C72: 4473.438813 | D72: 2697.361823 | E72: 1776.07699 | F72: 496198.4134 | G72: 1598.767714
A73: 71 | B73: 496198.4134 | C73: 4473.438813 | D73: 2687.741406 | E73: 1785.697407 | F73: 494412.716 | G73: 1581.206497
A74: 72 | B74: 494412.716 | C74: 4473.438813 | D74: 2678.068878 | E74: 1795.369935 | F74: 492617.3461 | G74: 1563.787712
A75: 73 | B75: 492617.3461 | C75: 4473.438813 | D75: 2668.343958 | E75: 1805.094855 | F75: 490812.2512 | G75: 1546.510274
A76: 74 | B76: 490812.2512 | C76: 4473.438813 | D76: 2658.566361 | E76: 1814.872452 | F76: 488997.3788 | G76: 1529.373107
A77: 75 | B77: 488997.3788 | C77: 4473.438813 | D77: 2648.735802 | E77: 1824.703011 | F77: 487172.6758 | G77: 1512.375143
A78: 76 | B78: 487172.6758 | C78: 4473.438813 | D78: 2638.851994 | E78: 1834.586819 | F78: 485338.0889 | G78: 1495.515321
A79: 77 | B79: 485338.0889 | C79: 4473.438813 | D79: 2628.914648 | E79: 1844.524165 | F79: 483493.5648 | G79: 1478.79259
A80: 78 | B80: 483493.5648 | C80: 4473.438813 | D80: 2618.923476 | E80: 1854.515337 | F80: 481639.0494 | G80: 1462.205904
A81: 79 | B81: 481639.0494 | C81: 4473.438813 | D81: 2608.878184 | E81: 1864.560629 | F81: 479774.4888 | G81: 1445.754228
A82: 80 | B82: 479774.4888 | C82: 4473.438813 | D82: 2598.778481 | E82: 1874.660332 | F82: 477899.8285 | G82: 1429.436531
A83: 81 | B83: 477899.8285 | C83: 4473.438813 | D83: 2588.624071 | E83: 1884.814742 | F83: 476015.0137 | G83: 1413.251794
A84: 82 | B84: 476015.0137 | C84: 4473.438813 | D84: 2578.414658 | E84: 1895.024155 | F84: 474119.9896 | G84: 1397.199002
A85: 83 | B85: 474119.9896 | C85: 4473.438813 | D85: 2568.149944 | E85: 1905.288869 | F85: 472214.7007 | G85: 1381.277149
A86: 84 | B86: 472214.7007 | C86: 4473.438813 | D86: 2557.829629 | E86: 1915.609184 | F86: 470299.0915 | G86: 1365.485238
A87: 85 | B87: 470299.0915 | C87: 4473.438813 | D87: 2547.453412 | E87: 1925.985401 | F87: 468373.1061 | G87: 1349.822277
A88: 86 | B88: 468373.1061 | C88: 4473.438813 | D88: 2537.020992 | E88: 1936.417822 | F88: 466436.6883 | G88: 1334.287283
A89: 87 | B89: 466436.6883 | C89: 4473.438813 | D89: 2526.532062 | E89: 1946.906751 | F89: 464489.7816 | G89: 1318.879279
A90: 88 | B90: 464489.7816 | C90: 4473.438813 | D90: 2515.986317 | E90: 1957.452496 | F90: 462532.3291 | G90: 1303.597297
A91: 89 | B91: 462532.3291 | C91: 4473.438813 | D91: 2505.383449 | E91: 1968.055364 | F91: 460564.2737 | G91: 1288.440375
A92: 90 | B92: 460564.2737 | C92: 4473.438813 | D92: 2494.723149 | E92: 1978.715664 | F92: 458585.558 | G92: 1273.40756
A93: 91 | B93: 458585.558 | C93: 4473.438813 | D93: 2484.005106 | E93: 1989.433707 | F93: 456596.1243 | G93: 1258.497903
A94: 92 | B94: 456596.1243 | C94: 4473.438813 | D94: 2473.229007 | E94: 2000.209806 | F94: 454595.9145 | G94: 1243.710465
A95: 93 | B95: 454595.9145 | C95: 4473.438813 | D95: 2462.394537 | E95: 2011.044276 | F95: 452584.8702 | G95: 1229.044312
A96: 94 | B96: 452584.8702 | C96: 4473.438813 | D96: 2451.50138 | E96: 2021.937433 | F96: 450562.9328 | G96: 1214.498519
A97: 95 | B97: 450562.9328 | C97: 4473.438813 | D97: 2440.549219 | E97: 2032.889594 | F97: 448530.0432 | G97: 1200.072167
A98: 96 | B98: 448530.0432 | C98: 4473.438813 | D98: 2429.537734 | E98: 2043.901079 | F98: 446486.1421 | G98: 1185.764343
A99: 97 | B99: 446486.1421 | C99: 4473.438813 | D99: 2418.466603 | E99: 2054.97221 | F99: 444431.1699 | G99: 1171.574142
A100: 98 | B100: 444431.1699 | C100: 4473.438813 | D100: 2407.335504 | E100: 2066.103309 | F100: 442365.0666 | G100: 1157.500665
A101: 99 | B101: 442365.0666 | C101: 4473.438813 | D101: 2396.144111 | E101: 2077.294702 | F101: 440287.7719 | G101: 1143.543021
A102: 100 | B102: 440287.7719 | C102: 4473.438813 | D102: 2384.892098 | E102: 2088.546715 | F102: 438199.2252 | G102: 1129.700324
A103: 101 | B103: 438199.2252 | C103: 4473.438813 | D103: 2373.579137 | E103: 2099.859677 | F103: 436099.3655 | G103: 1115.971696
A104: 102 | B104: 436099.3655 | C104: 4473.438813 | D104: 2362.204897 | E104: 2111.233916 | F104: 433988.1316 | G104: 1102.356265
A105: 103 | B105: 433988.1316 | C105: 4473.438813 | D105: 2350.769046 | E105: 2122.669767 | F105: 431865.4618 | G105: 1088.853165
A106: 104 | B106: 431865.4618 | C106: 4473.438813 | D106: 2339.271252 | E106: 2134.167561 | F106: 429731.2943 | G106: 1075.461538
A107: 105 | B107: 429731.2943 | C107: 4473.438813 | D107: 2327.711177 | E107: 2145.727636 | F107: 427585.5666 | G107: 1062.18053
A108: 106 | B108: 427585.5666 | C108: 4473.438813 | D108: 2316.088486 | E108: 2157.350327 | F108: 425428.2163 | G108: 1049.009297
A109: 107 | B109: 425428.2163 | C109: 4473.438813 | D109: 2304.402838 | E109: 2169.035975 | F109: 423259.1803 | G109: 1035.946999
A110: 108 | B110: 423259.1803 | C110: 4473.438813 | D110: 2292.653894 | E110: 2180.78492 | F110: 421078.3954 | G110: 1022.992801
A111: 109 | B111: 421078.3954 | C111: 4473.438813 | D111: 2280.841309 | E111: 2192.597505 | F111: 418885.7979 | G111: 1010.145876
A112: 110 | B112: 418885.7979 | C112: 4473.438813 | D112: 2268.964739 | E112: 2204.474074 | F112: 416681.3238 | G112: 997.4054048
A113: 111 | B113: 416681.3238 | C113: 4473.438813 | D113: 2257.023838 | E113: 2216.414976 | F113: 414464.9089 | G113: 984.7705711
A114: 112 | B114: 414464.9089 | C114: 4473.438813 | D114: 2245.018256 | E114: 2228.420557 | F114: 412236.4883 | G114: 972.2405665
A115: 113 | B115: 412236.4883 | C115: 4473.438813 | D115: 2232.947645 | E115: 2240.491168 | F115: 409995.9971 | G115: 959.8145884
A116: 114 | B116: 409995.9971 | C116: 4473.438813 | D116: 2220.811651 | E116: 2252.627162 | F116: 407743.37 | G116: 947.4918403
A117: 115 | B117: 407743.37 | C117: 4473.438813 | D117: 2208.609921 | E117: 2264.828892 | F117: 405478.5411 | G117: 935.2715314
A118: 116 | B118: 405478.5411 | C118: 4473.438813 | D118: 2196.342098 | E118: 2277.096716 | F118: 403201.4444 | G118: 923.152877
A119: 117 | B119: 403201.4444 | C119: 4473.438813 | D119: 2184.007824 | E119: 2289.430989 | F119: 400912.0134 | G119: 911.1350983
A120: 118 | B120: 400912.0134 | C120: 4473.438813 | D120: 2171.606739 | E120: 2301.832074 | F120: 398610.1813 | G120: 899.2174224
A121: 119 | B121: 398610.1813 | C121: 4473.438813 | D121: 2159.138482 | E121: 2314.300331 | F121: 396295.881 | G121: 887.399082
A122: 120 | B122: 396295.881 | C122: 4473.438813 | D122: 2146.602689 | E122: 2326.836124 | F122: 393969.0449 | G122: 875.6793157
A123: 121 | B123: 393969.0449 | C123: 4473.438813 | D123: 2133.998993 | E123: 2339.43982 | F123: 391629.605 | G123: 864.0573678
A124: 122 | B124: 391629.605 | C124: 4473.438813 | D124: 2121.327027 | E124: 2352.111786 | F124: 389277.4933 | G124: 852.5324882
A125: 123 | B125: 389277.4933 | C125: 4473.438813 | D125: 2108.586422 | E125: 2364.852391 | F125: 386912.6409 | G125: 841.1039326
A126: 124 | B126: 386912.6409 | C126: 4473.438813 | D126: 2095.776805 | E126: 2377.662008 | F126: 384534.9789 | G126: 829.7709621
A127: 125 | B127: 384534.9789 | C127: 4473.438813 | D127: 2082.897802 | E127: 2390.541011 | F127: 382144.4378 | G127: 818.5328434
A128: 126 | B128: 382144.4378 | C128: 4473.438813 | D128: 2069.949038 | E128: 2403.489775 | F128: 379740.9481 | G128: 807.3888488
A129: 127 | B129: 379740.9481 | C129: 4473.438813 | D129: 2056.930135 | E129: 2416.508678 | F129: 377324.4394 | G129: 796.3382559
A130: 128 | B130: 377324.4394 | C130: 4473.438813 | D130: 2043.840713 | E130: 2429.5981 | F130: 374894.8413 | G130: 785.3803479
A131: 129 | B131: 374894.8413 | C131: 4473.438813 | D131: 2030.68039 | E131: 2442.758423 | F131: 372452.0829 | G131: 774.5144132
A132: 130 | B132: 372452.0829 | C132: 4473.438813 | D132: 2017.448782 | E132: =C132-D132 -> 2455.990031 | F132: =B132-E132 -> 369996.0928 | G132: =D132/POWER(1+9/1200,A132) -> 763.7397456
A133: =A132+1 -> 131 | B133: =IF(F132>0,F132,0) -> 369996.0928 | C133: =IF(B133>0,C132,0) -> 4473.438813 | D133: =B133*$J$1/1200 -> 2004.145503 | E133: 2469.29331 | F133: 367526.7995 | G133: 753.0556443
A134: 132 | B134: 367526.7995 | C134: 4473.438813 | D134: 1990.770164 | E134: 2482.668649 | F134: 365044.1309 | G134: 742.4614137
A135: 133 | B135: 365044.1309 | C135: 4473.438813 | D135: 1977.322376 | E135: 2496.116438 | F135: 362548.0144 | G135: 731.9563634
A136: 134 | B136: 362548.0144 | C136: 4473.438813 | D136: 1963.801745 | E136: 2509.637068 | F136: 360038.3774 | G136: 721.5398082
A137: 135 | B137: 360038.3774 | C137: 4473.438813 | D137: 1950.207877 | E137: 2523.230936 | F137: 357515.1464 | G137: 711.211068
A138: 136 | B138: 357515.1464 | C138: 4473.438813 | D138: 1936.540377 | E138: 2536.898437 | F138: 354978.248 | G138: 700.9694678
A139: 137 | B139: 354978.248 | C139: 4473.438813 | D139: 1922.798843 | E139: 2550.63997 | F139: 352427.608 | G139: 690.8143379
A140: 138 | B140: 352427.608 | C140: 4473.438813 | D140: 1908.982877 | E140: 2564.455936 | F140: 349863.1521 | G140: 680.7450133
A141: 139 | B141: 349863.1521 | C141: 4473.438813 | D141: 1895.092074 | E141: 2578.346739 | F141: 347284.8054 | G141: 670.7608342
A142: 140 | B142: 347284.8054 | C142: 4473.438813 | D142: 1881.126029 | E142: 2592.312784 | F142: 344692.4926 | G142: 660.8611457
A143: 141 | B143: 344692.4926 | C143: 4473.438813 | D143: 1867.084335 | E143: 2606.354478 | F143: 342086.1381 | G143: 651.0452977
A144: 142 | B144: 342086.1381 | C144: 4473.438813 | D144: 1852.966581 | E144: 2620.472232 | F144: 339465.6659 | G144: 641.3126453
A145: 143 | B145: 339465.6659 | C145: 4473.438813 | D145: 1838.772357 | E145: 2634.666456 | F145: 336830.9994 | G145: 631.662548
A146: 144 | B146: 336830.9994 | C146: 4473.438813 | D146: 1824.501247 | E146: 2648.937566 | F146: 334182.0618 | G146: 622.0943706
A147: 145 | B147: 334182.0618 | C147: 4473.438813 | D147: 1810.152835 | E147: 2663.285978 | F147: 331518.7759 | G147: 612.6074823
A148: 146 | B148: 331518.7759 | C148: 4473.438813 | D148: 1795.726703 | E148: 2677.712111 | F148: 328841.0637 | G148: 603.2012571
A149: 147 | B149: 328841.0637 | C149: 4473.438813 | D149: 1781.222429 | E149: 2692.216384 | F149: 326148.8474 | G149: 593.8750739
A150: 148 | B150: 326148.8474 | C150: 4473.438813 | D150: 1766.63959 | E150: 2706.799223 | F150: 323442.0481 | G150: 584.6283161
A151: 149 | B151: 323442.0481 | C151: 4473.438813 | D151: 1751.977761 | E151: 2721.461052 | F151: 320720.5871 | G151: 575.4603717
A152: 150 | B152: 320720.5871 | C152: 4473.438813 | D152: 1737.236513 | E152: 2736.2023 | F152: 317984.3848 | G152: 566.3706334
A153: 151 | B153: 317984.3848 | C153: 4473.438813 | D153: 1722.415418 | E153: 2751.023395 | F153: 315233.3614 | G153: 557.3584984
A154: 152 | B154: 315233.3614 | C154: 4473.438813 | D154: 1707.514041 | E154: 2765.924772 | F154: 312467.4366 | G154: 548.4233685
A155: 153 | B155: 312467.4366 | C155: 4473.438813 | D155: 1692.531948 | E155: 2780.906865 | F155: 309686.5298 | G155: 539.56465
A156: 154 | B156: 309686.5298 | C156: 4473.438813 | D156: 1677.468703 | E156: 2795.97011 | F156: 306890.5596 | G156: 530.7817535
A157: 155 | B157: 306890.5596 | C157: 4473.438813 | D157: 1662.323865 | E157: 2811.114948 | F157: 304079.4447 | G157: 522.0740943
A158: 156 | B158: 304079.4447 | C158: 4473.438813 | D158: 1647.096992 | E158: 2826.341821 | F158: 301253.1029 | G158: 513.4410918
A159: 157 | B159: 301253.1029 | C159: 4473.438813 | D159: 1631.787641 | E159: 2841.651173 | F159: 298411.4517 | G159: 504.8821699
A160: 158 | B160: 298411.4517 | C160: 4473.438813 | D160: 1616.395363 | E160: 2857.04345 | F160: 295554.4083 | G160: 496.396757
A161: 159 | B161: 295554.4083 | C161: 4473.438813 | D161: 1600.919711 | E161: 2872.519102 | F161: 292681.8892 | G161: 487.9842854
A162: 160 | B162: 292681.8892 | C162: 4473.438813 | D162: 1585.360233 | E162: 2888.07858 | F162: 289793.8106 | G162: 479.6441921
A163: 161 | B163: 289793.8106 | C163: 4473.438813 | D163: 1569.716474 | E163: 2903.722339 | F163: 286890.0882 | G163: 471.375918
A164: 162 | B164: 286890.0882 | C164: 4473.438813 | D164: 1553.987978 | E164: 2919.450835 | F164: 283970.6374 | G164: 463.1789085
A165: 163 | B165: 283970.6374 | C165: 4473.438813 | D165: 1538.174286 | E165: 2935.264527 | F165: 281035.3729 | G165: 455.0526128
A166: 164 | B166: 281035.3729 | C166: 4473.438813 | D166: 1522.274936 | E166: 2951.163877 | F166: 278084.209 | G166: 446.9964846
A167: 165 | B167: 278084.209 | C167: 4473.438813 | D167: 1506.289465 | E167: 2967.149348 | F167: 275117.0596 | G167: 439.0099814
A168: 166 | B168: 275117.0596 | C168: 4473.438813 | D168: 1490.217406 | E168: 2983.221407 | F168: 272133.8382 | G168: 431.0925652
A169: 167 | B169: 272133.8382 | C169: 4473.438813 | D169: 1474.05829 | E169: 2999.380523 | F169: 269134.4577 | G169: 423.2437015
A170: 168 | B170: 269134.4577 | C170: 4473.438813 | D170: 1457.811646 | E170: 3015.627167 | F170: 266118.8305 | G170: 415.4628603
A171: 169 | B171: 266118.8305 | C171: 4473.438813 | D171: 1441.476999 | E171: 3031.961814 | F171: 263086.8687 | G171: 407.7495153
A172: 170 | B172: 263086.8687 | C172: 4473.438813 | D172: 1425.053872 | E172: 3048.384941 | F172: 260038.4838 | G172: 400.1031443
A173: 171 | B173: 260038.4838 | C173: 4473.438813 | D173: 1408.541787 | E173: 3064.897026 | F173: 256973.5868 | G173: 392.5232289
A174: 172 | B174: 256973.5868 | C174: 4473.438813 | D174: 1391.940262 | E174: 3081.498551 | F174: 253892.0882 | G174: 385.0092547
A175: 173 | B175: 253892.0882 | C175: 4473.438813 | D175: 1375.248811 | E175: 3098.190002 | F175: 250793.8982 | G175: 377.5607112
A176: 174 | B176: 250793.8982 | C176: 4473.438813 | D176: 1358.466949 | E176: 3114.971864 | F176: 247678.9264 | G176: 370.1770917
A177: 175 | B177: 247678.9264 | C177: 4473.438813 | D177: 1341.594184 | E177: 3131.844629 | F177: 244547.0817 | G177: 362.8578932
A178: 176 | B178: 244547.0817 | C178: 4473.438813 | D178: 1324.630026 | E178: 3148.808787 | F178: 241398.2729 | G178: 355.6026167
A179: 177 | B179: 241398.2729 | C179: 4473.438813 | D179: 1307.573978 | E179: 3165.864835 | F179: 238232.4081 | G179: 348.4107668
A180: 178 | B180: 238232.4081 | C180: 4473.438813 | D180: 1290.425544 | E180: 3183.013269 | F180: 235049.3948 | G180: 341.2818518
A181: 179 | B181: 235049.3948 | C181: 4473.438813 | D181: 1273.184222 | E181: 3200.254591 | F181: 231849.1402 | G181: 334.2153838
A182: 180 | B182: 231849.1402 | C182: 4473.438813 | D182: 1255.84951 | E182: 3217.589303 | F182: 228631.5509 | G182: 327.2108786
A183: 181 | B183: =IF(F182>0,F182,0) -> 228631.5509 | C183: =IF(B183>0,C182,0) -> 4473.438813 | D183: =B183*$J$1/1200 -> 1238.420901 | E183: =C183-D183 -> 3235.017912 | F183: =B183-E183 -> 225396.533 | G183: =D183/POWER(1+9/1200,A183) -> 320.2678555
A184: 182 | B184: 225396.533 | C184: 4473.438813 | D184: 1220.897887 | E184: 3252.540926 | F184: 222143.9921 | G184: 313.3858376
A185: 183 | B185: 222143.9921 | C185: 4473.438813 | D185: 1203.279957 | E185: 3270.158856 | F185: 218873.8332 | G185: 306.5643515
A186: 184 | B186: 218873.8332 | C186: 4473.438813 | D186: 1185.566597 | E186: 3287.872216 | F186: 215585.961 | G186: 299.8029273
A187: 185 | B187: 215585.961 | C187: 4473.438813 | D187: 1167.757289 | E187: 3305.681524 | F187: 212280.2795 | G187: 293.1010986
A188: 186 | B188: 212280.2795 | C188: 4473.438813 | D188: 1149.851514 | E188: 3323.587299 | F188: 208956.6922 | G188: 286.4584028
A189: 187 | B189: 208956.6922 | C189: 4473.438813 | D189: 1131.848749 | E189: 3341.590064 | F189: 205615.1021 | G189: 279.8743805
A190: 188 | B190: 205615.1021 | C190: 4473.438813 | D190: 1113.74847 | E190: 3359.690343 | F190: 202255.4118 | G190: 273.3485758
A191: 189 | B191: 202255.4118 | C191: 4473.438813 | D191: 1095.550147 | E191: 3377.888666 | F191: 198877.5231 | G191: 266.8805364
A192: 190 | B192: 198877.5231 | C192: 4473.438813 | D192: 1077.25325 | E192: 3396.185563 | F192: 195481.3376 | G192: 260.4698132
A193: 191 | B193: 195481.3376 | C193: 4473.438813 | D193: 1058.857245 | E193: 3414.581568 | F193: 192066.756 | G193: 254.1159606
A194: 192 | B194: 192066.756 | C194: 4473.438813 | D194: 1040.361595 | E194: 3433.077218 | F194: 188633.6788 | G194: 247.8185364
A195: 193 | B195: 188633.6788 | C195: 4473.438813 | D195: 1021.76576 | E195: 3451.673053 | F195: 185182.0057 | G195: 241.5771015
A196: 194 | B196: 185182.0057 | C196: 4473.438813 | D196: 1003.069198 | E196: 3470.369615 | F196: 181711.6361 | G196: 235.3912204
A197: =A196+1 -> 195 | B197: 181711.6361 | C197: 4473.438813 | D197: 984.2713623 | E197: 3489.167451 | F197: 178222.4687 | G197: 229.2604607
A198: 196 | B198: 178222.4687 | C198: 4473.438813 | D198: 965.3717052 | E198: 3508.067108 | F198: 174714.4016 | G198: 223.1843933
A199: 197 | B199: 174714.4016 | C199: 4473.438813 | D199: 946.3696751 | E199: 3527.069138 | F199: 171187.3324 | G199: 217.1625924
A200: 198 | B200: 171187.3324 | C200: 4473.438813 | D200: 927.2647173 | E200: 3546.174096 | F200: 167641.1583 | G200: 211.1946352
... 43 more rows

Sheet Sheet1
A1: Please enable macros
